[Event "Titled Tuesday Blitz April 18 Early 2023"]
[White "KorolDimitriy75"]
[Black "Bashirli, Saadat"]
[BlackFideId "13429990"]
[WhiteElo "2385"]
[BlackElo "1408"]
[Result "0-1"]
[Round "09"]
[TimeControl "180+2"]
[Date "2023.04.18"]
[WhiteClock "0:00:06"]
[BlackClock "0:01:02"]

1. d4 {[%clk 0:03:00]}  d5 {[%clk 0:02:56]} 2. c4 {[%clk 0:03:00]}  e6 {[%clk 0:02:56]} 3. Nc3 {[%clk 0:03:00]}  c6 {[%clk 0:02:57]} 4. e3 {[%clk 0:02:59]}  Nf6 {[%clk 0:02:57]} 5. Nf3 {[%clk 0:02:59]}  Nbd7 {[%clk 0:02:54]} 6. Bd3 {[%clk 0:02:59]}  dxc4 {[%clk 0:02:53]} 7. Bxc4 {[%clk 0:03:00]}  b5 {[%clk 0:02:53]} 8. Be2 {[%clk 0:03:00]}  Bd6 {[%clk 0:02:52]} 9. e4 {[%clk 0:03:00]}  e5 {[%clk 0:02:48]} 10. O-O {[%clk 0:03:00]}  O-O {[%clk 0:02:44]} 11. Bg5 {[%clk 0:03:00]}  h6 {[%clk 0:02:41]} 12. Bh4 {[%clk 0:02:59]}  Qe7 {[%clk 0:02:30]} 13. Re1 {[%clk 0:02:21]}  Bb7 {[%clk 0:02:19]} 14. Bf1 {[%clk 0:01:46]}  Rfd8 {[%clk 0:02:08]} 15. Qc2 {[%clk 0:01:04]}  Rac8 {[%clk 0:02:04]} 16. Rad1 {[%clk 0:00:59]}  a6 {[%clk 0:01:58]} 17. h3 {[%clk 0:00:49]}  Bb8 {[%clk 0:01:54]} 18. dxe5 {[%clk 0:00:31]}  Nxe5 {[%clk 0:01:55]} 19. Nd4 {[%clk 0:00:31]}  c5 {[%clk 0:01:44]} 20. Nf5 {[%clk 0:00:31]}  Qe6 {[%clk 0:01:44]} 21. Bg3 {[%clk 0:00:20]}  Rxd1 {[%clk 0:01:38]} 22. Rxd1 {[%clk 0:00:19]}  Nxe4 {[%clk 0:01:35]} 23. Nxe4 {[%clk 0:00:17]}  Qxf5 {[%clk 0:01:34]} 24. f3 {[%clk 0:00:14]}  Nxf3+ {[%clk 0:01:30]} 25. gxf3 {[%clk 0:00:14]}  Bxg3 {[%clk 0:01:30]} 26. Qg2 {[%clk 0:00:13]}  Be5 {[%clk 0:01:20]} 27. Bd3 {[%clk 0:00:12]}  Bxe4 {[%clk 0:01:14]} 28. Bxe4 {[%clk 0:00:12]}  Qf6 {[%clk 0:01:13]} 29. Rd7 {[%clk 0:00:11]}  Rd8 {[%clk 0:01:08]} 30. Rxd8+ {[%clk 0:00:10]}  Qxd8 {[%clk 0:01:09]} 31. Qg4 {[%clk 0:00:07]}  Qd1+ {[%clk 0:01:07]} 32. Kg2 {[%clk 0:00:07]}  Qe2+ {[%clk 0:01:06]} 33. Kg1 {[%clk 0:00:07]}  Bd4+ {[%clk 0:01:05]} 34. Kh1 {[%clk 0:00:06]}  Qf1+ {[%clk 0:01:02]} 35. Kh2 {[%clk 0:00:06]}  Be5+ {[%clk 0:01:02]} 0-1


[Site "https://www.chess.com"]

[Event "Titled Tuesday Blitz April 18 Early 2023"]
[White "Sailer, Mike"]
[Black "Ansh M Shah"]
[WhiteFideId "2012901"]
[BlackFideId "25033379"]
[WhiteElo "2109"]
[BlackElo "2084"]
[Result "0-1"]
[Round "09"]
[TimeControl "180+2"]
[Date "2023.04.18"]
[WhiteClock "0:00:02"]
[BlackClock "0:00:06"]

1. d4 {[%clk 0:03:00]}  Nf6 {[%clk 0:02:57]} 2. Bg5 {[%clk 0:02:58]}  e6 {[%clk 0:02:58]} 3. Nd2 {[%clk 0:02:57]}  d5 {[%clk 0:02:58]} 4. e3 {[%clk 0:02:57]}  Be7 {[%clk 0:02:58]} 5. Bd3 {[%clk 0:02:55]}  h6 {[%clk 0:02:58]} 6. Bh4 {[%clk 0:02:55]}  c5 {[%clk 0:02:59]} 7. c3 {[%clk 0:02:55]}  Nc6 {[%clk 0:02:59]} 8. f4 {[%clk 0:02:54]}  b6 {[%clk 0:02:52]} 9. Ngf3 {[%clk 0:02:54]}  O-O {[%clk 0:02:52]} 10. O-O {[%clk 0:02:54]}  a5 {[%clk 0:02:51]} 11. Ne5 {[%clk 0:02:52]}  Nxe5 {[%clk 0:02:51]} 12. fxe5 {[%clk 0:02:52]}  Nd7 {[%clk 0:02:51]} 13. Bxe7 {[%clk 0:02:48]}  Qxe7 {[%clk 0:02:52]} 14. Rf3 {[%clk 0:02:42]}  Ba6 {[%clk 0:02:52]} 15. Bxa6 {[%clk 0:02:37]}  Rxa6 {[%clk 0:02:52]} 16. Rg3 {[%clk 0:02:35]}  f6 {[%clk 0:02:36]} 17. exf6 {[%clk 0:02:27]}  Rxf6 {[%clk 0:02:37]} 18. Qg4 {[%clk 0:02:22]}  e5 {[%clk 0:02:35]} 19. Rf1 {[%clk 0:02:17]}  Rxf1+ {[%clk 0:02:34]} 20. Nxf1 {[%clk 0:02:17]}  exd4 {[%clk 0:02:30]} 21. exd4 {[%clk 0:02:13]}  Ra8 {[%clk 0:02:29]} 22. Ne3 {[%clk 0:02:02]}  Rf8 {[%clk 0:02:23]} 23. h3 {[%clk 0:01:55]}  Nf6 {[%clk 0:02:08]} 24. Qf5 {[%clk 0:01:29]}  cxd4 {[%clk 0:01:45]} 25. cxd4 {[%clk 0:01:20]}  Qb4 {[%clk 0:01:41]} 26. Qg6 {[%clk 0:01:04]}  Ne8 {[%clk 0:00:41]} 27. Nf5 {[%clk 0:00:46]}  Qe1+ {[%clk 0:00:40]} 28. Kh2 {[%clk 0:00:46]}  Rf6 {[%clk 0:00:40]} 29. Nxh6+ {[%clk 0:00:29]}  Kf8 {[%clk 0:00:39]} 30. Rf3 {[%clk 0:00:15]}  Rxf3 {[%clk 0:00:27]} 31. gxf3 {[%clk 0:00:12]}  Qf2+ {[%clk 0:00:22]} 32. Kh1 {[%clk 0:00:08]}  Qxf3+ {[%clk 0:00:22]} 33. Kh2 {[%clk 0:00:09]}  Qf2+ {[%clk 0:00:14]} 34. Kh1 {[%clk 0:00:09]}  Qe1+ {[%clk 0:00:12]} 35. Kg2 {[%clk 0:00:08]}  Qd2+ {[%clk 0:00:13]} 36. Kh1 {[%clk 0:00:07]}  Qxh6 {[%clk 0:00:13]} 37. Qf5+ {[%clk 0:00:07]}  Qf6 {[%clk 0:00:13]} 38. Qxd5 {[%clk 0:00:07]}  Qd6 {[%clk 0:00:09]} 39. Qf5+ {[%clk 0:00:07]}  Kg8 {[%clk 0:00:09]} 40. d5 {[%clk 0:00:07]}  Nf6 {[%clk 0:00:09]} 41. Qc8+ {[%clk 0:00:06]}  Kf7 {[%clk 0:00:09]} 42. Qb7+ {[%clk 0:00:06]}  Kg6 {[%clk 0:00:10]} 43. Qa6 {[%clk 0:00:02]}  Qxd5+ {[%clk 0:00:09]} 44. Kh2 {[%clk 0:00:02]}  Qd6+ {[%clk 0:00:09]} 45. Kh1 {[%clk 0:00:02]}  Ne4 {[%clk 0:00:08]} 46. Qe2 {[%clk 0:00:02]}  Qf4 {[%clk 0:00:06]} 0-1


[Site "https://www.chess.com"]

[Event "Titled Tuesday Blitz April 18 Early 2023"]
[White "Tarnowska, Aleksandra"]
[Black "Kula, Robert"]
[WhiteFideId "1180967"]
[BlackFideId "1101218"]
[WhiteElo "1776"]
[BlackElo "2180"]
[Result "1/2-1/2"]
[Round "09"]
[TimeControl "180+2"]
[Date "2023.04.18"]
[WhiteClock "0:00:03"]
[BlackClock "0:01:09"]

1. e4 {[%clk 0:03:00]}  e5 {[%clk 0:02:53]} 2. Nf3 {[%clk 0:03:00]}  Nc6 {[%clk 0:02:53]} 3. Bb5 {[%clk 0:02:59]}  Nd4 {[%clk 0:02:53]} 4. Bc4 {[%clk 0:02:57]}  Nxf3+ {[%clk 0:02:49]} 5. Qxf3 {[%clk 0:02:57]}  Qf6 {[%clk 0:02:50]} 6. Qxf6 {[%clk 0:02:50]}  Nxf6 {[%clk 0:02:49]} 7. d3 {[%clk 0:02:48]}  Bc5 {[%clk 0:02:49]} 8. h3 {[%clk 0:02:43]}  O-O {[%clk 0:02:49]} 9. Bg5 {[%clk 0:02:32]}  d6 {[%clk 0:02:40]} 10. Nc3 {[%clk 0:02:27]}  Be6 {[%clk 0:02:38]} 11. Bb3 {[%clk 0:02:18]}  Bxb3 {[%clk 0:02:31]} 12. axb3 {[%clk 0:02:18]}  c6 {[%clk 0:02:29]} 13. Na4 {[%clk 0:02:06]}  Bb6 {[%clk 0:02:26]} 14. Bxf6 {[%clk 0:02:01]}  gxf6 {[%clk 0:02:25]} 15. Nxb6 {[%clk 0:02:01]}  axb6 {[%clk 0:02:25]} 16. Ke2 {[%clk 0:01:57]}  Kg7 {[%clk 0:02:24]} 17. Ke3 {[%clk 0:01:53]}  h5 {[%clk 0:02:24]} 18. f4 {[%clk 0:01:53]}  Kh6 {[%clk 0:02:15]} 19. g4 {[%clk 0:01:45]}  Rab8 {[%clk 0:02:14]} 20. Ra7 {[%clk 0:01:26]}  Rg8 {[%clk 0:02:14]} 21. Kf3 {[%clk 0:01:16]}  d5 {[%clk 0:02:11]} 22. b4 {[%clk 0:00:58]}  b5 {[%clk 0:02:10]} 23. Rha1 {[%clk 0:00:52]}  Rg7 {[%clk 0:02:07]} 24. R1a5 {[%clk 0:00:43]}  dxe4+ {[%clk 0:02:05]} 25. dxe4 {[%clk 0:00:43]}  exf4 {[%clk 0:02:04]} 26. Kxf4 {[%clk 0:00:43]}  hxg4 {[%clk 0:02:04]} 27. hxg4 {[%clk 0:00:42]}  Rbg8 {[%clk 0:02:05]} 28. Rxb7 {[%clk 0:00:40]}  Rxg4+ {[%clk 0:02:06]} 29. Ke3 {[%clk 0:00:36]}  Rg3+ {[%clk 0:02:05]} 30. Kd4 {[%clk 0:00:34]}  Rg2 {[%clk 0:02:03]} 31. Rxf7 {[%clk 0:00:25]}  Kg6 {[%clk 0:02:02]} 32. Raa7 {[%clk 0:00:22]}  Rxc2 {[%clk 0:02:02]} 33. Rac7 {[%clk 0:00:07]}  Rxb2 {[%clk 0:01:56]} 34. Kc3 {[%clk 0:00:07]}  Rb1 {[%clk 0:01:53]} 35. Kc2 {[%clk 0:00:07]}  Rxb4 {[%clk 0:01:51]} 36. Rfe7 {[%clk 0:00:07]}  Rc4+ {[%clk 0:01:38]} 37. Kb3 {[%clk 0:00:06]}  Kg5 {[%clk 0:01:37]} 38. Rcd7 {[%clk 0:00:04]}  Kf4 {[%clk 0:01:32]} 39. Re6 {[%clk 0:00:04]}  Rg3+ {[%clk 0:01:28]} 40. Kb2 {[%clk 0:00:04]}  Rxe4 {[%clk 0:01:27]} 41. Rxf6+ {[%clk 0:00:04]}  Ke5 {[%clk 0:01:27]} 42. Rxc6 {[%clk 0:00:03]}  Re2+ {[%clk 0:01:26]} 43. Kc1 {[%clk 0:00:03]}  Rg1+ {[%clk 0:01:16]} 44. Rd1 {[%clk 0:00:04]}  Rgg2 {[%clk 0:01:15]} 45. Rc5+ {[%clk 0:00:03]}  Ke4 {[%clk 0:01:16]} 46. Rxb5 {[%clk 0:00:03]}  Rc2+ {[%clk 0:01:17]} 47. Kb1 {[%clk 0:00:03]}  Ra2 {[%clk 0:01:13]} 48. Rb4+ {[%clk 0:00:03]}  Ke3 {[%clk 0:01:13]} 49. Rh1 {[%clk 0:00:03]}  Raf2 {[%clk 0:01:09]} 50. Rh3+ {[%clk 0:00:03]}  Ke2 {[%clk 0:01:09]} 51. Rb2+ {[%clk 0:00:03]}  Ke1 {[%clk 0:01:08]} 52. Rh1+ {[%clk 0:00:03]}  Rf1 {[%clk 0:01:09]} 53. Rxf1+ {[%clk 0:00:02]}  Kxf1 {[%clk 0:01:09]} 54. Rxg2 {[%clk 0:00:03]}  Kxg2 {[%clk 0:01:09]} 1/2-1/2


[Site "https://www.chess.com"]

[Event "Titled Tuesday Blitz April 18 Early 2023"]
[White "Theytookourjobs"]
[Black "Ramirez Vido, Robert Yorisan"]
[BlackFideId "3513823"]
[WhiteElo "2311"]
[BlackElo "2422"]
[Result "1-0"]
[Round "09"]
[TimeControl "180+2"]
[Date "2023.04.18"]
[WhiteClock "0:00:07"]
[BlackClock "0:00:02"]

1. d4 {[%clk 0:02:57]}  g6 {[%clk 0:02:58]} 2. Bf4 {[%clk 0:02:53]}  Nf6 {[%clk 0:02:58]} 3. Nc3 {[%clk 0:02:52]}  d5 {[%clk 0:02:56]} 4. e3 {[%clk 0:02:51]}  Bg7 {[%clk 0:02:56]} 5. h4 {[%clk 0:02:51]}  h5 {[%clk 0:02:56]} 6. Nf3 {[%clk 0:02:49]}  O-O {[%clk 0:02:51]} 7. Nb5 {[%clk 0:02:49]}  Na6 {[%clk 0:02:49]} 8. Be2 {[%clk 0:02:48]}  c6 {[%clk 0:02:49]} 9. Nc3 {[%clk 0:02:48]}  Qb6 {[%clk 0:02:43]} 10. Na4 {[%clk 0:02:43]}  Qa5+ {[%clk 0:02:29]} 11. c3 {[%clk 0:02:42]}  Bg4 {[%clk 0:02:28]} 12. b4 {[%clk 0:02:33]}  Nxb4 {[%clk 0:02:07]} 13. cxb4 {[%clk 0:02:33]}  Qxb4+ {[%clk 0:02:08]} 14. Kf1 {[%clk 0:02:27]}  Bxf3 {[%clk 0:02:03]} 15. gxf3 {[%clk 0:02:18]}  Nd7 {[%clk 0:01:39]} 16. Rb1 {[%clk 0:02:08]}  Qa3 {[%clk 0:01:22]} 17. Rxb7 {[%clk 0:02:06]}  e5 {[%clk 0:01:16]} 18. dxe5 {[%clk 0:01:37]}  Nxe5 {[%clk 0:01:11]} 19. Qb3 {[%clk 0:01:31]}  Qc1+ {[%clk 0:01:02]} 20. Kg2 {[%clk 0:01:30]}  Qd2 {[%clk 0:01:03]} 21. Qb2 {[%clk 0:00:44]}  Qa5 {[%clk 0:00:55]} 22. Qb4 {[%clk 0:00:39]}  Qd8 {[%clk 0:00:43]} 23. Qe7 {[%clk 0:00:39]}  Qa5 {[%clk 0:00:36]} 24. Bxe5 {[%clk 0:00:38]}  Rae8 {[%clk 0:00:34]} 25. Qb4 {[%clk 0:00:35]}  Qxb4 {[%clk 0:00:33]} 26. Rxb4 {[%clk 0:00:36]}  Rxe5 {[%clk 0:00:31]} 27. Nc5 {[%clk 0:00:35]}  Rd8 {[%clk 0:00:28]} 28. Nd3 {[%clk 0:00:35]}  Re7 {[%clk 0:00:25]} 29. Rhb1 {[%clk 0:00:33]}  Bf6 {[%clk 0:00:21]} 30. Rb7 {[%clk 0:00:32]}  Rdd7 {[%clk 0:00:11]} 31. Rxd7 {[%clk 0:00:30]}  Rxd7 {[%clk 0:00:12]} 32. Kg3 {[%clk 0:00:29]}  Re7 {[%clk 0:00:12]} 33. f4 {[%clk 0:00:28]}  d4 {[%clk 0:00:12]} 34. Kf3 {[%clk 0:00:14]}  Bxh4 {[%clk 0:00:11]} 35. Ne5 {[%clk 0:00:13]}  c5 {[%clk 0:00:10]} 36. Rc1 {[%clk 0:00:13]}  Rc7 {[%clk 0:00:09]} 37. Bc4 {[%clk 0:00:11]}  dxe3 {[%clk 0:00:08]} 38. fxe3 {[%clk 0:00:11]}  Kg7 {[%clk 0:00:07]} 39. Nxf7 {[%clk 0:00:10]}  Bf6 {[%clk 0:00:06]} 40. Ne5 {[%clk 0:00:10]}  Rb7 {[%clk 0:00:05]} 41. Ke4 {[%clk 0:00:10]}  Rb4 {[%clk 0:00:03]} 42. Kd5 {[%clk 0:00:09]}  h4 {[%clk 0:00:04]} 43. Rg1 {[%clk 0:00:08]}  g5 {[%clk 0:00:01]} 44. fxg5 {[%clk 0:00:07]}  Bxe5 {[%clk 0:00:02]} 45. Kxe5 {[%clk 0:00:05]}  Rxc4 {[%clk 0:00:02]} 46. Kd5 {[%clk 0:00:06]}  Rc2 {[%clk 0:00:02]} 47. Rh1 {[%clk 0:00:06]}  Kg6 {[%clk 0:00:02]} 48. Rxh4 {[%clk 0:00:06]}  Kxg5 {[%clk 0:00:02]} 49. Ra4 {[%clk 0:00:07]}  Re2 {[%clk 0:00:02]} 50. e4 {[%clk 0:00:07]}  Rc2 {[%clk 0:00:02]} 51. Rxa7 {[%clk 0:00:08]}  c4 {[%clk 0:00:02]} 52. e5 {[%clk 0:00:08]}  c3 {[%clk 0:00:03]} 53. e6 {[%clk 0:00:08]}  Rd2+ {[%clk 0:00:03]} 54. Ke4 {[%clk 0:00:08]}  c2 {[%clk 0:00:04]} 55. Rc7 {[%clk 0:00:08]}  Re2+ {[%clk 0:00:03]} 56. Kd3 {[%clk 0:00:08]}  Rxe6 {[%clk 0:00:04]} 57. Kxc2 {[%clk 0:00:09]}  Ra6 {[%clk 0:00:04]} 58. Kb3 {[%clk 0:00:09]}  Kf6 {[%clk 0:00:05]} 59. a4 {[%clk 0:00:09]}  Ke6 {[%clk 0:00:05]} 60. Kb4 {[%clk 0:00:10]}  Kd6 {[%clk 0:00:06]} 61. Rc1 {[%clk 0:00:10]}  Kd7 {[%clk 0:00:06]} 62. Kb5 {[%clk 0:00:10]}  Ra8 {[%clk 0:00:06]} 63. a5 {[%clk 0:00:10]}  Rb8+ {[%clk 0:00:06]} 64. Ka6 {[%clk 0:00:10]}  Ra8+ {[%clk 0:00:06]} 65. Kb6 {[%clk 0:00:10]}  Rb8+ {[%clk 0:00:07]} 66. Ka7 {[%clk 0:00:10]}  Rb2 {[%clk 0:00:06]} 67. a6 {[%clk 0:00:10]}  Rb3 {[%clk 0:00:05]} 68. Rc4 {[%clk 0:00:07]}  Rb4 {[%clk 0:00:02]} 69. Rxb4 {[%clk 0:00:07]} 1-0


[Site "https://www.chess.com"]

[Event "Titled Tuesday Blitz April 18 Early 2023"]
[White "Liu, Casper"]
[Black "Inepton_Fermion"]
[WhiteFideId "1454153"]
[WhiteElo "2221"]
[BlackElo "2253"]
[Result "0-1"]
[Round "09"]
[TimeControl "180+2"]
[Date "2023.04.18"]
[WhiteClock "0:00:09"]
[BlackClock "0:00:57"]

1. e4 {[%clk 0:01:08]}  g6 {[%clk 0:02:59]} 2. h4 {[%clk 0:01:05]}  h5 {[%clk 0:02:50]} 3. Nf3 {[%clk 0:01:04]}  Bg7 {[%clk 0:02:41]} 4. d4 {[%clk 0:01:03]}  d6 {[%clk 0:02:40]} 5. c3 {[%clk 0:01:02]}  Bg4 {[%clk 0:02:37]} 6. Qb3 {[%clk 0:00:56]}  Nd7 {[%clk 0:02:21]} 7. Ng5 {[%clk 0:00:50]}  e6 {[%clk 0:01:23]} 8. f3 {[%clk 0:00:44]}  Ngf6 {[%clk 0:01:23]} 9. fxg4 {[%clk 0:00:34]}  Nxg4 {[%clk 0:01:24]} 10. Bc4 {[%clk 0:00:34]}  Qe7 {[%clk 0:01:19]} 11. O-O {[%clk 0:00:32]}  Ndf6 {[%clk 0:01:20]} 12. Bf4 {[%clk 0:00:16]}  O-O {[%clk 0:01:16]} 13. e5 {[%clk 0:00:15]}  dxe5 {[%clk 0:01:12]} 14. dxe5 {[%clk 0:00:16]}  Qc5+ {[%clk 0:01:09]} 15. Kh1 {[%clk 0:00:15]}  Nf2+ {[%clk 0:01:07]} 16. Kh2 {[%clk 0:00:13]}  N6g4+ {[%clk 0:00:57]} 17. Kg3 {[%clk 0:00:12]}  Bxe5 {[%clk 0:00:57]} 18. Nd2 {[%clk 0:00:08]}  Bxf4+ {[%clk 0:00:57]} 19. Kxf4 {[%clk 0:00:09]}  Qe5+ {[%clk 0:00:57]} 20. Kf3 {[%clk 0:00:09]}  Qe3# {[%clk 0:00:57]} 0-1


[Site "https://www.chess.com"]

[Event "Titled Tuesday Blitz April 18 Early 2023"]
[White "Yanayt, Eugene"]
[Black "Quirke, Jeffrey"]
[WhiteFideId "2020165"]
[BlackFideId "2013029"]
[WhiteElo "2083"]
[BlackElo "2236"]
[Result "0-1"]
[Round "09"]
[TimeControl "180+2"]
[Date "2023.04.18"]
[WhiteClock "0:00:10"]
[BlackClock "0:00:06"]

1. d4 {[%clk 0:02:39]}  Nf6 {[%clk 0:02:56]} 2. c4 {[%clk 0:02:33]}  g6 {[%clk 0:02:56]} 3. Nc3 {[%clk 0:02:29]}  d5 {[%clk 0:02:56]} 4. Nf3 {[%clk 0:02:28]}  Bg7 {[%clk 0:02:55]} 5. cxd5 {[%clk 0:02:27]}  Nxd5 {[%clk 0:02:55]} 6. Bd2 {[%clk 0:02:28]}  Nxc3 {[%clk 0:02:46]} 7. Bxc3 {[%clk 0:02:27]}  O-O {[%clk 0:02:45]} 8. e3 {[%clk 0:02:24]}  c5 {[%clk 0:02:40]} 9. h4 {[%clk 0:02:17]}  Nc6 {[%clk 0:02:39]} 10. h5 {[%clk 0:02:15]}  Bg4 {[%clk 0:02:38]} 11. d5 {[%clk 0:02:13]}  Bxc3+ {[%clk 0:02:37]} 12. bxc3 {[%clk 0:02:13]}  Ne5 {[%clk 0:02:35]} 13. Be2 {[%clk 0:02:10]}  Bxf3 {[%clk 0:02:33]} 14. Bxf3 {[%clk 0:02:09]}  Qa5 {[%clk 0:02:32]} 15. Rc1 {[%clk 0:02:06]}  g5 {[%clk 0:02:15]} 16. h6 {[%clk 0:01:58]}  Qxa2 {[%clk 0:01:42]} 17. Be4 {[%clk 0:01:56]}  f6 {[%clk 0:01:27]} 18. O-O {[%clk 0:01:30]}  Qa6 {[%clk 0:01:23]} 19. Bf5 {[%clk 0:01:27]}  Qd6 {[%clk 0:01:22]} 20. f4 {[%clk 0:01:24]}  gxf4 {[%clk 0:01:07]} 21. exf4 {[%clk 0:01:21]}  Ng6 {[%clk 0:01:06]} 22. Qg4 {[%clk 0:01:09]}  Kh8 {[%clk 0:01:03]} 23. Be6 {[%clk 0:01:03]}  f5 {[%clk 0:00:56]} 24. Qg5 {[%clk 0:01:02]}  Rf6 {[%clk 0:00:51]} 25. Rce1 {[%clk 0:00:59]}  Raf8 {[%clk 0:00:47]} 26. g4 {[%clk 0:00:56]}  fxg4 {[%clk 0:00:34]} 27. Re4 {[%clk 0:00:47]}  Rxf4 {[%clk 0:00:28]} 28. Rfxf4 {[%clk 0:00:27]}  Rxf4 {[%clk 0:00:27]} 29. Re3 {[%clk 0:00:19]}  Ra4 {[%clk 0:00:14]} 30. Qxg4 {[%clk 0:00:10]}  Ra1+ {[%clk 0:00:12]} 31. Kg2 {[%clk 0:00:10]}  Ra2+ {[%clk 0:00:12]} 32. Kf3 {[%clk 0:00:09]}  Ra3 {[%clk 0:00:05]} 33. Qf5 {[%clk 0:00:08]}  Nh4+ {[%clk 0:00:03]} 34. Ke4 {[%clk 0:00:07]}  Nxf5 {[%clk 0:00:04]} 35. Bxf5 {[%clk 0:00:07]}  Qf6 {[%clk 0:00:03]} 36. Rf3 {[%clk 0:00:05]}  Rxc3 {[%clk 0:00:02]} 37. Rxc3 {[%clk 0:00:04]}  Qxc3 {[%clk 0:00:02]} 38. Be6 {[%clk 0:00:05]}  Qd4+ {[%clk 0:00:03]} 39. Kf5 {[%clk 0:00:05]}  c4 {[%clk 0:00:03]} 40. d6 {[%clk 0:00:06]}  c3 {[%clk 0:00:03]} 41. dxe7 {[%clk 0:00:06]}  Qc5+ {[%clk 0:00:03]} 42. Kf6 {[%clk 0:00:06]}  Qxe7+ {[%clk 0:00:04]} 43. Kxe7 {[%clk 0:00:07]}  c2 {[%clk 0:00:04]} 44. Bf5 {[%clk 0:00:07]}  c1=Q {[%clk 0:00:05]} 45. Kf6 {[%clk 0:00:07]}  Qc3+ {[%clk 0:00:04]} 46. Kf7 {[%clk 0:00:07]}  b5 {[%clk 0:00:05]} 47. Be6 {[%clk 0:00:07]}  b4 {[%clk 0:00:05]} 48. Bd5 {[%clk 0:00:07]}  b3 {[%clk 0:00:06]} 49. Be6 {[%clk 0:00:08]}  b2 {[%clk 0:00:06]} 50. Kf8 {[%clk 0:00:08]}  b1=Q {[%clk 0:00:06]} 51. Bd7 {[%clk 0:00:09]}  Qb8+ {[%clk 0:00:05]} 52. Ke7 {[%clk 0:00:08]}  Qc5+ {[%clk 0:00:05]} 53. Ke6 {[%clk 0:00:09]}  Qbd6+ {[%clk 0:00:05]} 54. Kf7 {[%clk 0:00:10]}  Qxd7+ {[%clk 0:00:04]} 55. Kf6 {[%clk 0:00:09]}  Qdd6+ {[%clk 0:00:05]} 56. Kf7 {[%clk 0:00:10]}  Qcc7+ {[%clk 0:00:05]} 57. Ke8 {[%clk 0:00:10]}  Qdd8# {[%clk 0:00:06]} 0-1


[Site "https://www.chess.com"]

[Event "Titled Tuesday Blitz April 18 Early 2023"]
[White "Rodriguez Santiago, Jaime"]
[Black "Necula, Iulian"]
[WhiteFideId "3100898"]
[BlackFideId "1232380"]
[WhiteElo "2025"]
[BlackElo "1790"]
[Result "1-0"]
[Round "09"]
[TimeControl "180+2"]
[Date "2023.04.18"]
[WhiteClock "0:00:21"]
[BlackClock "0:00:02"]

1. c4 {[%clk 0:03:00]}  d6 {[%clk 0:03:00]} 2. Nc3 {[%clk 0:02:58]}  e5 {[%clk 0:03:00]} 3. g3 {[%clk 0:02:58]}  f5 {[%clk 0:02:59]} 4. Bg2 {[%clk 0:02:58]}  Nf6 {[%clk 0:03:00]} 5. d3 {[%clk 0:02:58]}  c6 {[%clk 0:03:00]} 6. e3 {[%clk 0:02:58]}  Be7 {[%clk 0:02:59]} 7. Nge2 {[%clk 0:02:57]}  O-O {[%clk 0:02:59]} 8. O-O {[%clk 0:02:57]}  Be6 {[%clk 0:02:57]} 9. Rb1 {[%clk 0:02:56]}  a5 {[%clk 0:02:56]} 10. a3 {[%clk 0:02:56]}  Nbd7 {[%clk 0:02:51]} 11. b4 {[%clk 0:02:55]}  axb4 {[%clk 0:02:52]} 12. axb4 {[%clk 0:02:55]}  Qc7 {[%clk 0:02:50]} 13. b5 {[%clk 0:02:54]}  Rfb8 {[%clk 0:02:41]} 14. h3 {[%clk 0:02:48]}  d5 {[%clk 0:02:32]} 15. cxd5 {[%clk 0:02:34]}  Nxd5 {[%clk 0:02:33]} 16. Nxd5 {[%clk 0:02:24]}  Bxd5 {[%clk 0:02:34]} 17. Bxd5+ {[%clk 0:02:23]}  cxd5 {[%clk 0:02:35]} 18. d4 {[%clk 0:02:23]}  Rd8 {[%clk 0:02:04]} 19. dxe5 {[%clk 0:02:14]}  Nxe5 {[%clk 0:02:03]} 20. Nd4 {[%clk 0:02:07]}  Qd7 {[%clk 0:01:52]} 21. Bb2 {[%clk 0:01:56]}  Bf6 {[%clk 0:01:48]} 22. Ba1 {[%clk 0:01:51]}  g6 {[%clk 0:01:42]} 23. Qb3 {[%clk 0:01:46]}  Nc4 {[%clk 0:01:32]} 24. Rfc1 {[%clk 0:01:43]}  Nd2 {[%clk 0:01:30]} 25. Qd3 {[%clk 0:01:37]}  Nxb1 {[%clk 0:01:29]} 26. Qxb1 {[%clk 0:01:37]}  Rdc8 {[%clk 0:01:21]} 27. Rd1 {[%clk 0:01:36]}  Rc4 {[%clk 0:01:19]} 28. Qd3 {[%clk 0:01:27]}  Rac8 {[%clk 0:01:16]} 29. Kg2 {[%clk 0:01:26]}  Kg7 {[%clk 0:01:14]} 30. b6 {[%clk 0:01:19]}  h6 {[%clk 0:01:09]} 31. Qb3 {[%clk 0:01:18]}  Rc1 {[%clk 0:01:02]} 32. Rxc1 {[%clk 0:01:16]}  Rxc1 {[%clk 0:01:02]} 33. Qb2 {[%clk 0:01:16]}  Rc8 {[%clk 0:00:59]} 34. f3 {[%clk 0:01:12]}  Kf7 {[%clk 0:00:56]} 35. g4 {[%clk 0:01:10]}  fxg4 {[%clk 0:00:54]} 36. hxg4 {[%clk 0:01:11]}  Qe7 {[%clk 0:00:38]} 37. Qb5 {[%clk 0:01:06]}  Bxd4 {[%clk 0:00:35]} 38. Bxd4 {[%clk 0:01:05]}  Rc2+ {[%clk 0:00:34]} 39. Kh3 {[%clk 0:01:04]}  Rc6 {[%clk 0:00:17]} 40. Qxd5+ {[%clk 0:01:03]}  Qe6 {[%clk 0:00:18]} 41. Qd8 {[%clk 0:00:59]}  Rd6 {[%clk 0:00:14]} 42. Qh8 {[%clk 0:00:58]}  Ke7 {[%clk 0:00:12]} 43. Bc5 {[%clk 0:00:56]}  Kd7 {[%clk 0:00:12]} 44. Qg7+ {[%clk 0:00:55]}  Kc6 {[%clk 0:00:12]} 45. Bxd6 {[%clk 0:00:54]}  Qxd6 {[%clk 0:00:13]} 46. Qxh6 {[%clk 0:00:48]}  Kxb6 {[%clk 0:00:13]} 47. Qg7 {[%clk 0:00:45]}  Kc5 {[%clk 0:00:12]} 48. Qc3+ {[%clk 0:00:45]}  Kb6 {[%clk 0:00:12]} 49. Qb3+ {[%clk 0:00:44]}  Kc7 {[%clk 0:00:12]} 50. f4 {[%clk 0:00:43]}  b6 {[%clk 0:00:11]} 51. Kg3 {[%clk 0:00:43]}  Kb7 {[%clk 0:00:11]} 52. Kh4 {[%clk 0:00:40]}  Qf6+ {[%clk 0:00:10]} 53. g5 {[%clk 0:00:39]}  Qf5 {[%clk 0:00:10]} 54. Qc3 {[%clk 0:00:34]}  b5 {[%clk 0:00:10]} 55. Qf6 {[%clk 0:00:31]}  Qe4 {[%clk 0:00:10]} 56. Qd4 {[%clk 0:00:26]}  Qh1+ {[%clk 0:00:09]} 57. Kg3 {[%clk 0:00:26]}  Qg1+ {[%clk 0:00:09]} 58. Kf3 {[%clk 0:00:26]}  Qf1+ {[%clk 0:00:09]} 59. Ke4 {[%clk 0:00:25]}  Qg2+ {[%clk 0:00:09]} 60. Ke5 {[%clk 0:00:26]}  Qc6 {[%clk 0:00:07]} 61. Qb4 {[%clk 0:00:24]}  Qe8+ {[%clk 0:00:04]} 62. Kf6 {[%clk 0:00:23]}  Qc6+ {[%clk 0:00:03]} 63. Kg7 {[%clk 0:00:23]}  Qe6 {[%clk 0:00:02]} 64. e4 {[%clk 0:00:21]} 1-0


[Site "https://www.chess.com"]

[Event "Titled Tuesday Blitz April 18 Early 2023"]
[White "Steenbekkers, Franck"]
[Black "Birkisson, Bardur Orn"]
[WhiteFideId "1004220"]
[BlackFideId "2310597"]
[WhiteElo "2104"]
[BlackElo "2062"]
[Result "0-1"]
[Round "09"]
[TimeControl "180+2"]
[Date "2023.04.18"]
[WhiteClock "0:02:13"]
[BlackClock "0:01:32"]

1. e4 {[%clk 0:03:00]}  Nf6 {[%clk 0:02:59]} 2. e5 {[%clk 0:03:00]}  Nd5 {[%clk 0:02:59]} 3. d4 {[%clk 0:03:00]}  d6 {[%clk 0:03:00]} 4. Nf3 {[%clk 0:03:00]}  dxe5 {[%clk 0:02:59]} 5. Nxe5 {[%clk 0:03:00]}  c6 {[%clk 0:03:00]} 6. Be2 {[%clk 0:02:58]}  Bf5 {[%clk 0:02:58]} 7. O-O {[%clk 0:02:56]}  e6 {[%clk 0:02:57]} 8. c4 {[%clk 0:02:55]}  Nb4 {[%clk 0:02:50]} 9. Nc3 {[%clk 0:02:55]}  Nc2 {[%clk 0:02:43]} 10. Bf4 {[%clk 0:02:51]}  Nxa1 {[%clk 0:02:38]} 11. Qxa1 {[%clk 0:02:50]}  Qxd4 {[%clk 0:02:27]} 12. Bg3 {[%clk 0:02:48]}  Be7 {[%clk 0:02:18]} 13. Rd1 {[%clk 0:02:47]}  Qb6 {[%clk 0:02:17]} 14. Bf3 {[%clk 0:02:36]}  O-O {[%clk 0:02:12]} 15. Ne4 {[%clk 0:02:35]}  Bxe4 {[%clk 0:01:48]} 16. Bxe4 {[%clk 0:02:34]}  f5 {[%clk 0:01:48]} 17. Bf3 {[%clk 0:02:31]}  f4 {[%clk 0:01:48]} 18. Nd7 {[%clk 0:02:22]}  Nxd7 {[%clk 0:01:43]} 19. Rxd7 {[%clk 0:02:21]}  fxg3 {[%clk 0:01:31]} 20. Rxe7 {[%clk 0:02:20]}  Qxf2+ {[%clk 0:01:31]} 21. Kh1 {[%clk 0:02:19]}  Rxf3 {[%clk 0:01:32]} 22. b3 {[%clk 0:02:13]}  Qf1+ {[%clk 0:01:32]} 0-1


[Site "https://www.chess.com"]